[Event "Germany Countries-chT Youth 2022"]
[Site "Wiesbaden"]
[Date "2022.10.03"]
[Round "6"]
[White "Feidt, Jonas"]
[Black "Hänselmann, Hendrik"]
[Result "0-1"]
[ECO "A05"]
[WhiteElo "1908"]
[BlackElo "1989"]
[Annotator "TA"]
[PlyCount "140"]
[EventDate "2022.09.28"]
[EventType "team-tourn"]
[EventRounds "7"]
[EventCountry "GER"]
[SourceTitle "playchess.com"]
[Source "ChessBase"]
[SourceQuality "1"]
[TimeControl "40/5400+30:1800+30"]

{[%evp 21,140,0,29,27,34,31,25,9,11,-13,-12,-39,71,55,54,-4,6,0,0,-42,-42,-60,-62,-107,-99,-249,-76,-88,-92,-240,-237,-277,-258,-264,-256,-246,-244,-218,-98,-108,-111,-112,-55,-73,0,-256,-100,-95,0,0,0,0,0,0,0,0,0,0,0,0,0,0,0,-16,0,-52,-45,-165,-158,-189,-194,-187,-139,-139,-146,-208,-208,-208,-164,-187,-191,-171,-173,-191,-141,-114,-97,-239,-229,-247,-202,-265,-252,-207,0,0,0,0,0,0,0,0,0,0,0,0,0,0,0,0,0,-12840,-12835,-12847,-12847,-12848,-12848,-12850,-12849,-12850,-12849]} 1. Nf3 {[%emt 0:00:07]} Nf6 {[%emt 0:00:05]} 2. c4 {[%emt 0:00:30]} g6 {[%emt 0:00:07]} 3. g3 {[%emt 0:00:14]} Bg7 {[%emt 0:00:06]} 4. Bg2 {[%emt 0:00:05]} O-O {[%emt 0:00:10]} 5. O-O {[%emt 0:00:14]} d6 {[%emt 0:00:07]} 6. Nc3 {[%emt 0:00:13]} e5 {[%emt 0:00:27]} 7. d3 {[%emt 0:00:06]} Nc6 {[%emt 0:00:13]} 8. Rb1 {[%emt 0:00:13]} a5 {[%emt 0:00:08]} 9. a3 {[%emt 0:00:06]} Re8 {[%emt 0:00:19]} 10. b4 {[%emt 0:01:15]} axb4 {[%emt 0:00:40]} 11. axb4 {[%emt 0:00:02]} e4 {[%emt 0:00:18]} 12. Nxe4 {[%emt 0:23:35] A26: English Opening vs King's Indian with ...Nc6 and d3.} Nxe4 {[%emt 0:00:09]} 13. dxe4 {[%emt 0:00:05]} Rxe4 {[%emt 0:00:58]} 14. Nd2 {[%emt 0:01:50] White has an edge.} Re8 {[%emt 0:02:44]} 15. Bb2 {[%emt 0:17:13]} (15. b5 $5 {[%cal Rb5c6]} Ne5 16. Bb2 $15) 15... Bg4 {[%emt 0:12:27]} 16. Re1 {[%emt 0:01:33] [#]} (16. Bf3 $5 {[%cal Rf3g4]} Bxb2 17. Bxg4 $15) 16... Qe7 $146 {[%emt 0:08:00]} (16... Bxb2 $15 17. Rxb2 Qf6) ({Predecessor:} 16... Bxb2 17. Rxb2 Qf6 18. Qc1 Rxe2 19. Rxe2 Bxe2 20. b5 Nd4 21. Bxb7 Ra7 22. Be4 Bg4 {0-1 (48) Schaller,S-Troyke,C (2340) Dresden 1992}) 17. Bxg7 {[%emt 0:07:01]} Kxg7 {[%emt 0:00:33]} 18. Nf3 {[%emt 0:13:35]} (18. b5 $1 $14 Nd8 19. Nf1) 18... Ra2 {[%emt 0:03:21][%cal Ra2e2]} 19. b5 {[%emt 0:04:06]} Ne5 {[%emt 0:08:16]} 20. Qb3 {[%emt 0:02:22]} Rea8 {[%emt 0:02:15]} 21. Nxe5 {[%emt 0:05:11]} Qxe5 {[%emt 0:00:49]} 22. Bxb7 {[%emt 0:02:06]} R8a3 $36 {[%emt 0:02:13][%mdl 2048] Black is on the roll.} 23. Qd1 {[%emt 0:00:14]} (23. Qb4 $17) 23... Rxe2 $2 {[%emt 0:02:02]} (23... Bxe2 $19 24. Qc1 Rc3) 24. Rxe2 {[%emt 0:00:58]} Bxe2 {[%emt 0:01:08]} 25. Qd2 {[%emt 0:09:15]} (25. Qe1 $17) 25... Ra1 $19 {[%emt 0:06:15]} ({Don't blunder} 25... Bxc4 $2 26. f4 Qf6 27. Qb2) 26. Qc1 {[%emt 0:03:03]} Rxb1 {[%emt 0:01:30]} 27. Qxb1 {[%emt 0:00:01]} Bxc4 {[%emt 0:00:10][%mdl 4096] Endgame KQB-KQB} 28. Bc6 {[%emt 0:00:36]} d5 {[%emt 0:01:18]} 29. Qc1 {[%emt 0:00:57]} Qe2 {[%emt 0:02:34]} (29... Bd3 $19 {is more deadly. And now ...d4 would win.} 30. Qd1 Bc4) 30. Qa1+ $17 {[%emt 0:04:27]} f6 {[%emt 0:02:19]} 31. h4 {[%emt 0:00:32]} Kf7 {[%emt 0:08:24]} (31... Qe5 $17 32. Qa7 Kh6) 32. Qa7 {[%emt 0:02:41]} Ke6 {[%emt 0:01:42]} (32... Qe5 $17 33. Kg2 Kg8 34. Qb8+ Kg7) 33. Qd4 $2 {[%emt 0:01:16][%mdl 8192]} (33. Qxc7 $11 Qf1+ 34. Kh2 Qxf2+ 35. Kh1 Qf1+ 36. Kh2 Qf2+ 37. Kh1 Qf1+ 38. Kh2 Qf2+) 33... Qe5 $2 {[%emt 0:02:40]} (33... Qe1+ $1 $19 {and Black stays clearly on top.} 34. Kh2 Qe4) 34. Qc5 {[%emt 0:00:46]} Be2 {[%emt 0:02:21]} (34... Qd6 $17 35. Qa7 f5) 35. Qf8 $11 {[%emt 0:00:55]} Bf3 {[%emt 0:03:11] ( -> ...Qe1+)} 36. Kh2 $1 {[%emt 0:00:23]} Qe2 {[%emt 0:07:51]} 37. Qc8+ {[%emt 0:00:35]} Kd6 {[%emt 0:01:08]} 38. Qf8+ {[%emt 0:00:22]} Qe7 {[%emt 0:01:06]} (38... Ke5 $5 39. Qe7+ $8 Kd4 40. Qb4+ Kd3 41. Qb3+ Kd4 42. Qb4+ Ke5 43. Qe7+ Kd4 44. Qb4+ $11) 39. Qh6 {[%emt 0:00:32]} Qe4 {[%emt 0:01:30]} (39... Qe2 $5 40. Qf8+ $8 Ke5 41. Qe7+ Kd4 42. Qb4+ Qc4 43. Qd2+ Qd3 44. Qb4+ Qc4 45. Qd2+ Qd3 46. Qb4+ Qc4 $11) 40. Qf8+ {[%emt 0:00:27]} Qe7 {[%emt 0:02:43] Active counter play!} 41. Qh6 {[%emt 0:03:22] Strongly threatening Qf4+.} Be2 {[%emt 0:01:21]} 42. Qd2 {[%emt 0:02:52][%csl Gc6][%cal Rd2d5]} Bc4 {[%emt 0:00:45]} 43. Qb4+ {[%emt 0:01:50]} (43. Qc3 $11) 43... Ke6 $15 {[%emt 0:00:08]} 44. Qd2 {[%emt 0:00:20]} ({Better is} 44. Qa5 $1 $15) 44... Qc5 $19 {[%emt 0:02:43]} 45. Qe1+ {[%emt 0:02:03]} Kd6 {[%emt 0:01:03]} 46. Qd2 {[%emt 0:01:12]} Bxb5 {[%emt 0:06:13]} (46... g5 $19 47. hxg5 fxg5) 47. Bxb5 $17 {[%emt 0:00:22]} Qxb5 $19 {[%emt 0:00:01] KQ-KQ} 48. Qf4+ {[%emt 0:00:13]} (48. Qc3 $17 {is a better defense.}) 48... Kc6 $1 {[%emt 0:00:22]} 49. Qxf6+ {[%emt 0:00:26]} Kb7 {[%emt 0:00:27]} 50. Qd4 {[%emt 0:01:49]} Qc6 {[%emt 0:01:23]} 51. Kg1 {[%emt 0:01:48]} Qd6 {[%emt 0:00:20]} 52. Qb2+ {[%emt 0:00:37]} Kc6 {[%emt 0:00:34]} ({Black should try} 52... Qb6 $19 53. Qg7 h5) 53. Qc3+ $17 {[%emt 0:01:13]} Qc5 {[%emt 0:01:30]} 54. Qf6+ {[%emt 0:01:30]} (54. Qh8 $17) 54... Kb5 $19 {[%emt 0:00:18]} 55. Qb2+ {[%emt 0:00:27] [#]} Qb4 $1 {[%emt 0:02:14]} 56. Qe5 {[%emt 0:02:13]} Qb1+ {[%emt 0:03:08]} 57. Kh2 {[%emt 0:00:15] [#]} Qe4 {[%emt 0:00:11]} (57... Qa2 $1 $19 {[%cal Ra2f2]} 58. Kg2 Qc4 59. Qb2+ Qb4) 58. Qxc7 $11 {[%emt 0:01:14]} d4 {[%emt 0:00:15] aiming for ...d3.} 59. Qxh7 {[%emt 0:01:15]} Qc2 {[%emt 0:01:17]} 60. Qd7+ {[%emt 0:02:04]} Kc4 {[%emt 0:00:21]} 61. Qc6+ {[%emt 0:02:11]} Kb3 {[%emt 0:00:25]} 62. Qb6+ {[%emt 0:00:49]} Kc3 {[%emt 0:00:21]} 63. Qf6 {[%emt 0:01:50]} Qe4 {[%emt 0:01:43]} 64. f3 {[%emt 0:02:01]} Qe3 {[%emt 0:00:44] Hoping for ...Kd2.} 65. Kg2 {[%emt 0:07:03]} ({But not} 65. Qxg6 $2 d3 66. Qc6+ Kb2 67. Qb5+ Kc1 $19) 65... Kd2 {[%emt 0:01:39] Threatens to win with ...Ke1.} 66. Qf4 $2 {[%emt 0:01:11][%mdl 8192]} (66. Qxg6 $11 d3 67. Qf6) 66... Ke2 {[%emt 0:04:47] Black is clearly winning.} 67. Qxe3+ {[%emt 0:01:19]} dxe3 {[%emt 0:00:13]} 68. f4 {[%emt 0:00:46]} Kd2 {[%emt 0:00:17]} 69. Kf3 {[%emt 0:00:21]} e2 {[%emt 0:00:07]} 70. Kg4 {[%emt 0:00:04]} e1=Q {[%emt 0:00:09] Weighted Error Value: White=0.29 (precise) /Black=0.30} 0-1

[Event "Germany Countries-chT Youth 2022"]
[Site "Wiesbaden"]
[Date "2022.10.03"]
[Round "6"]
[White "Herrmann, Jakob"]
[Black "Fischer, Darja"]
[Result "1-0"]
[ECO "B19"]
[WhiteElo "1888"]
[BlackElo "1738"]
[Annotator "NA RC COMBH"]
[PlyCount "85"]
[EventDate "2022.09.28"]
[EventType "team-tourn"]
[EventRounds "7"]
[EventCountry "GER"]
[SourceTitle "playchess.com"]
[Source "ChessBase"]
[SourceQuality "1"]
[TimeControl "40/5400+30:1800+30"]

1. e4 {[%emt 0:00:03]} c6 {[%emt 0:00:04]} 2. Nc3 {[%emt 0:00:16]} d5 {[%emt 0:00:06]} 3. d4 {[%emt 0:00:04]} dxe4 {[%emt 0:00:04]} 4. Nxe4 {[%emt 0:00:06]} Bf5 {[%emt 0:00:06]} 5. Ng3 {[%emt 0:00:07]} Bg6 {[%emt 0:00:09]} 6. h4 {[%emt 0:00:04]} h6 {[%emt 0:00:07]} 7. Nf3 {[%emt 0:00:07]} Nd7 {[%emt 0:00:09]} 8. h5 {[%emt 0:00:07]} Bh7 {[%emt 0:00:05]} 9. Bd3 {[%emt 0:00:05]} Bxd3 {[%emt 0:00:06]} 10. Qxd3 {[%emt 0:00:05]} Qc7 {[%emt 0:00:08]} 11. Bd2 {[%emt 0:00:16]} Ngf6 {[%emt 0:00:26]} 12. O-O-O {[%emt 0:00:38]} O-O-O {[%emt 0:00:21]} 13. Ne4 {[%emt 0:00:12]} e6 {[%emt 0:00:07]} 14. g3 {[%emt 0:01:02]} Nxe4 {[%emt 0:00:12]} 15. Qxe4 {[%emt 0:00:06]} Nf6 {[%emt 0:00:08]} 16. Qe2 {[%emt 0:00:07]} Rd5 {[%emt 0:00:34]} 17. Ne5 {[%emt 0:10:39]} Rxd4 {[%emt 0:11:27]} 18. Bf4 {[%emt 0:00:13]} Rxd1+ {[%emt 0:01:19]} 19. Rxd1 {[%emt 0:00:08]} Nd5 {[%emt 0:01:56]} 20. Rxd5 {[%emt 0:00:23]} cxd5 {[%emt 0:00:11]} 21. Ng6 {[%emt 0:00:07]} Bd6 {[%emt 0:00:51]} 22. Nxh8 {[%emt 0:02:17]} Bxf4+ {[%emt 0:00:55]} 23. gxf4 {[%emt 0:00:06]} Qe7 {[%emt 0:08:28]} 24. f5 {[%emt 0:05:57]} Qg5+ {[%emt 0:08:31]} 25. Qe3 {[%emt 0:00:43]} Qxf5 {[%emt 0:19:19]} 26. Qc3+ {[%emt 0:00:40]} Kd7 {[%emt 0:00:21]} 27. Qxg7 {[%emt 0:00:21]} Qf4+ {[%emt 0:01:41]} 28. Kb1 {[%emt 0:00:18]} Ke8 {[%emt 0:02:01]} 29. Nxf7 {[%emt 0:21:51]} Qxf7 {[%emt 0:02:56]} 30. Qxh6 {[%emt 0:00:12]} Qxf2 {[%emt 0:10:31]} 31. Qxe6+ {[%emt 0:00:16]} Kf8 {[%emt 0:00:04]} 32. Qc8+ {[%emt 0:01:10]} Kg7 {[%emt 0:00:22]} 33. Qxb7+ {[%emt 0:00:07]} Kh6 {[%emt 0:00:38]} 34. Qc6+ {[%emt 0:00:12]} Kg7 {[%emt 0:01:49]} 35. Qg6+ {[%emt 0:01:03]} Kf8 {[%emt 0:00:32]} 36. a3 {[%emt 0:00:47]} Qf1+ {[%emt 0:03:30]} 37. Ka2 {[%emt 0:00:06]} Qc4+ {[%emt 0:00:04]} 38. b3 {[%emt 0:00:05]} Qd4 {[%emt 0:00:06]} 39. h6 {[%emt 0:00:15]} Qc3 {[%emt 0:02:07]} 40. h7 {[%emt 0:00:38]} Ke7 {[%emt 0:00:24]} 41. Qg5+ {[%emt 0:30:53]} Kd7 {[%emt 0:30:57]} 42. Qxd5+ {[%emt 0:00:07]} Ke7 {[%emt 0:00:17]} 43. Qe4+ {[%emt 0:00:41]} 1-0

[Event "Germany Countries-chT Youth 2022"]
[Site "Wiesbaden"]
[Date "2022.10.03"]
[Round "6"]
[White "Haubold, Christian Lucas"]
[Black "Kempe, Caius Emilian"]
[Result "1-0"]
[ECO "C07"]
[WhiteElo "1885"]
[BlackElo "2030"]
[Annotator "TA"]
[PlyCount "65"]
[EventDate "2022.09.28"]
[EventType "team-tourn"]
[EventRounds "7"]
[EventCountry "GER"]
[SourceTitle "playchess.com"]
[Source "ChessBase"]
[SourceQuality "1"]
[TimeControl "40/5400+30:1800+30"]

{[%evp 10,65,22,18,22,20,30,7,7,0,9,0,0,0,0,0,0,-4,23,5,8,0,17,-39,-36,-109,-123,-106,-99,-136,102,103,240,231,254,242,255,249,237,250,262,223,366,371,372,380,380,346,322,264,252,241,257,247,240,192,618,608]} 1. e4 {[%emt 0:00:03]} e6 {[%emt 0:00:01]} 2. d4 {[%emt 0:00:11]} d5 {[%emt 0:00:04]} 3. Nd2 {[%emt 0:00:07]} c5 {[%emt 0:00:06]} 4. exd5 {[%emt 0:00:15]} Qxd5 {[%emt 0:00:07]} 5. Ngf3 {[%emt 0:00:14]} cxd4 {[%emt 0:00:12]} 6. Bc4 {[%emt 0:00:26]} Qd7 {[%emt 0:00:14] C07: French Tarrasch: 3...c5, 4 Ngf3 and 4 exd5 Qxd5.} 7. O-O {[%emt 0:00:54][%mdl 1024] White has compensation.} Nc6 {[%emt 0:00:06]} 8. Qe2 {[%emt 0:04:53]} a6 {[%emt 0:03:25] The position is equal.} 9. a4 {[%emt 0:01:31]} Qc7 {[%emt 0:05:19]} 10. Nb3 {[%emt 0:06:48]} Bd6 {[%emt 0:00:54]} 11. Rd1 {[%emt 0:02:15]} Nge7 {[%emt 0:03:11]} 12. h3 {[%emt 0:04:47]} O-O {[%emt 0:08:02]} 13. Nbxd4 {[%emt 0:02:40] [#]} Kh8 $146 {[%emt 0:11:16]} ({Predecessor:} 13... Nxd4 14. Nxd4 e5 15. Nf3 Bf5 16. Be3 Ng6 17. Bd5 Rae8 18. c4 Bc5 19. Rac1 Bxe3 20. fxe3 {1-0 (60) Dibusz,D (2076)-Baski,B (1740) Zalakaros 2018}) 14. b3 {[%emt 0:13:52]} Na5 {[%emt 0:02:16][%cal Bc6a5,Ba5c4,Bc4e5][%mdl 32]} 15. Ng5 {[%emt 0:06:05]} Nxc4 {[%emt 0:17:01]} 16. Qh5 {[%emt 0:01:42]} ({White should play} 16. bxc4 $11 h6 17. Ngf3) 16... h6 $1 $15 {[%emt 0:02:24][%cal Oh8g8] ...Kg8! is the strong threat.} 17. Nxf7+ {[%emt 0:14:30] [#]} (17. bxc4 $15 Kg8 18. Ne4) 17... Rxf7 $1 $17 {[%emt 0:02:42]} 18. Qxf7 {[%emt 0:03:59]} Ne5 {[%emt 0:00:21]} 19. Qf8+ {[%emt 0:01:27]} Ng8 $2 {[%emt 0:03:19]} (19... Kh7 $1 $17 {Threatens to win with ...Nd5.} 20. c4 (20. Nxe6 Bxe6 21. Qxa8 N7g6 $19) 20... Nd5 21. Nxe6 Bxe6 22. Qxa8 Nb6 23. Rxd6 Nxa8 24. Rxe6 Qd7 $1 25. Rxe5 Qd1+ 26. Kh2 Qd4) 20. Nxe6 $1 $16 {[%emt 0:00:56][%mdl 64] Pin. Dancing on a razor blade. White has more active pieces. The black rooks are badly placed.} Bxf8 {[%emt 0:05:42] Loses the game.} (20... Bxe6 $16 21. Qxd6 (21. Qxa8 Bc5 $11) 21... Qxc2) 21. Nxc7 $18 {[%emt 0:00:06]} Rb8 {[%emt 0:00:03] [#]} 22. Bf4 $1 {[%emt 0:01:55]} Ng6 {[%emt 0:00:31] [#]} 23. Nxa6 $1 {[%emt 0:00:56][%mdl 512]} Ra8 {[%emt 0:03:09]} 24. Nc7 {[%emt 0:00:27]} Ra5 {[%emt 0:00:36]} 25. Be3 {[%emt 0:01:29]} Nf6 {[%emt 0:01:12]} (25... Bf5 $142 26. Ra2 Nf6) 26. Rd8 {[%emt 0:04:02]} Bd7 {[%emt 0:01:23]} 27. Bd4 {[%emt 0:03:28] Strongly threatening Bxf6.} Bc6 {[%emt 0:01:05]} 28. Ne6 {[%emt 0:02:43]} Kg8 {[%emt 0:00:09]} 29. Nxf8 {[%emt 0:01:12]} Nxf8 {[%emt 0:00:02]} 30. Bxf6 {[%emt 0:01:26]} gxf6 {[%emt 0:00:01]} 31. c4 {[%emt 0:02:53]} Kf7 {[%emt 0:01:25]} 32. b4 {[%emt 0:05:18]} Ke7 $2 {[%emt 0:03:34]} (32... Ne6) 33. Rxf8 {[%emt 0:00:25] Weighted Error Value: White=0.16 (very precise) /Black=0.46} ({Not} 33. bxa5 Kxd8 34. Rd1+ Ke7 $16) 1-0

[Event "Germany Countries-chT Youth 2022"]
[Site "Wiesbaden"]
[Date "2022.10.03"]
[Round "6"]
[White "Braeutigam, Katerina"]
[Black "Möller, Maurin"]
[Result "0-1"]
[ECO "B23"]
[WhiteElo "1873"]
[BlackElo "1936"]
[Annotator "TA"]
[PlyCount "80"]
[EventDate "2022.09.28"]
[EventType "team-tourn"]
[EventRounds "7"]
[EventCountry "GER"]
[SourceTitle "playchess.com"]
[Source "ChessBase"]
[SourceQuality "1"]
[TimeControl "40/5400+30:1800+30"]

{[%evp 9,79,-12,10,12,14,-24,0,-14,-16,-13,-11,-16,-4,-20,-20,-20,49,-17,-20,-27,78,0,25,-40,-33,-49,0,0,53,37,66,36,64,-52,-43,-56,-49,-54,-52,-120,-124,-247,-228,-361,-343,-355,-353,-350,-349,-334,-326,-313,10,-1,0,-13,-15,-13,-23,-34,-34,-53,-36,-47,-37,-83,-87,-500,-500,-29988,-29989,-29999]} 1. e4 {[%emt 0:00:02]} c5 {[%emt 0:00:07]} 2. Nc3 {[%emt 0:00:05]} e6 {[%emt 0:00:14]} 3. g3 {[%emt 0:00:07]} Nc6 {[%emt 0:00:26]} 4. Bg2 {[%emt 0:00:07]} Nf6 {[%emt 0:00:30]} 5. d3 {[%emt 0:00:15]} a6 {[%emt 0:04:18]} 6. f4 {[%emt 0:02:24] B24: Closed Sicilian: 3 g3 sidelines.} d5 {[%emt 0:01:10]} 7. e5 {[%emt 0:00:39]} Nd7 {[%emt 0:00:19]} 8. a4 {[%emt 0:01:43] The position is equal.} Rb8 {[%emt 0:01:47]} 9. Nf3 {[%emt 0:02:18]} b5 {[%emt 0:01:46]} 10. axb5 {[%emt 0:02:14]} axb5 {[%emt 0:00:03]} 11. Qe2 {[%emt 0:08:14]} Be7 {[%emt 0:07:51]} 12. O-O {[%emt 0:01:54]} Qb6 {[%emt 0:03:53]} (12... O-O $11) 13. Kh1 {[%emt 0:04:19] [#]} (13. f5 $1 $14) 13... O-O $146 {[%emt 0:02:17]} ({Predecessor:} 13... h5 14. h4 g6 15. Bd2 Ba6 16. Bh3 Qb7 17. Kh2 Nb6 18. f5 exf5 19. d4 c4 {0-1 (39) Listiak,J-Lakatos,V (2117) Slovakia 2004}) 14. f5 {[%emt 0:09:29][%cal Of5f6]} d4 {[%emt 0:02:14]} (14... Bb7 $11 {keeps the balance.}) 15. fxe6 {[%emt 0:08:32]} (15. f6 $1 $16 {[%cal Of3g5] Black must now prevent Ng5!} dxc3 16. fxe7 Nxe7 17. bxc3) 15... fxe6 {[%emt 0:00:39]} 16. Nd1 {[%emt 0:01:21]} (16. Ne4 $11) 16... Bb7 {[%emt 0:00:37]} 17. Bf4 {[%emt 0:05:12]} h6 {[%emt 0:02:09]} (17... Nb4 $15) 18. Nf2 $11 {[%emt 0:04:44]} g5 {[%emt 0:02:21]} (18... Nb4 $11) 19. Bd2 $14 {[%emt 0:03:34] And now h4 would win.} Qc7 {[%emt 0:01:38]} 20. Rae1 {[%emt 0:08:07]} (20. Ng4 $5 {[%cal Rg4h6]} Kg7 21. h4 $11 (21. Qe4 $2 Ncxe5 22. Ra7 Nxf3 $19)) 20... Rf5 $1 {[%emt 0:03:26]} 21. g4 {[%emt 0:08:42]} ({Reject} 21. Ng4 Kg7 $11) ({White should play} 21. h4 $14) 21... Rf7 $36 {[%emt 0:00:17][%mdl 2048] Black has good play.} 22. Kg1 {[%emt 0:05:00][%cal Oh2h4]} Rbf8 {[%emt 0:01:02][%cal Of7f3]} 23. Nh1 $1 {[%emt 0:06:02]} Bd8 {[%emt 0:13:14]} 24. h4 {[%emt 0:07:44]} ({White should try} 24. Ng3 $15) 24... gxh4 $17 {[%emt 0:08:42][%cal Oh4h3] Strongly threatening ...h3!} 25. Bxh6 {[%emt 0:00:56]} (25. g5 $17 {is a better defense.}) 25... h3 $1 $19 {[%emt 0:00:36]} 26. Bxh3 {[%emt 0:00:37] [#]} (26. Bxf8 {was the only chance.} hxg2 27. Qxg2 Nxf8 28. Ng3) 26... Rxf3 $1 {[%emt 0:00:12][%mdl 576] Remove Defender. Really sharp!} 27. Rxf3 {[%emt 0:00:34]} Rxf3 {[%emt 0:00:08]} 28. Qxf3 {[%emt 0:00:19] Threatens to win with g5.} Ncxe5 {[%emt 0:00:07][%mdl 64] Discovered Attack} 29. Qe2 {[%emt 0:02:37] aiming for Bg2.} Nf3+ {[%emt 0:00:26] Pair of Knights!} 30. Kf1 {[%emt 0:01:40] [#]} Nxe1 $2 {[%emt 0:05:35]} (30... Nh2+ $1 $19 31. Kg1 {[#]} Ne5 $1 {[%mdl 512]}) 31. Qxe1 {[%emt 0:03:41]} Nf8 {[%emt 0:20:14]} 32. Bg2 {[%emt 0:01:44]} Qh2 {[%emt 0:03:04][%csl Gb7,LRg2,LRh6][%cal Rh2g2]} 33. Bxb7 {[%emt 0:00:36]} Qxh6 {[%emt 0:00:07]} 34. Nf2 {[%emt 0:01:18]} Bh4 {[%emt 0:00:48]} 35. Bc6 {[%emt 0:00:35]} b4 {[%emt 0:00:22]} 36. Bf3 {[%emt 0:00:24]} Qf4 {[%emt 0:00:50]} 37. Qd1 {[%emt 0:00:31]} (37. Qe2 $15) 37... Ng6 $17 {[%emt 0:00:47] Black has more active pieces.} 38. Nh3 $2 {[%emt 0:00:33][%mdl 8192]} (38. Ne4 $17) 38... Qg3 $19 {[%emt 0:00:41] ( -> ...Nf4)} 39. Bg2 {[%emt 0:00:15]} (39. Qe2 $19 Qxh3+ 40. Qg2 Qxg2+ 41. Bxg2) 39... Nf4 {[%emt 0:00:10][%csl Gf4][%cal Rg3g2]} 40. Qa1 {[%emt 0:00:49]} Qxg2# {Weighted Error Value: White=0.64/Black=0.24 (precise)} 0-1

[Event "Germany Countries-chT Youth 2022"]
[Site "Wiesbaden"]
[Date "2022.10.03"]
[Round "6"]
[White "Bock, Marlon"]
[Black "Popist, Florian"]
[Result "1/2-1/2"]
[ECO "D04"]
[WhiteElo "1862"]
[BlackElo "2187"]
[Annotator "TA"]
[PlyCount "87"]
[EventDate "2022.09.28"]
[EventType "team-tourn"]
[EventRounds "7"]
[EventCountry "GER"]
[SourceTitle "playchess.com"]
[Source "ChessBase"]
[SourceQuality "1"]
[TimeControl "40/5400+30:1800+30"]

{[%evp 9,87,-8,-2,-8,0,-31,-16,-23,0,-22,27,0,29,18,24,10,0,0,0,0,15,18,16,0,33,-16,-17,-21,-11,-11,-2,-11,0,-2,9,32,224,224,249,234,250,225,251,250,264,262,254,244,239,250,220,105,290,333,331,338,302,302,337,290,277,113,102,-38,-40,-63,-71,-100,0,-8,-8,-13,-13,-13,-8,-8,-8,-8,-8,-18]} 1. d4 {[%emt 0:00:03]} d5 {[%emt 0:00:06]} 2. Nf3 {[%emt 0:00:04]} Nf6 {[%emt 0:00:07]} 3. e3 {[%emt 0:00:08]} c5 {[%emt 0:01:17]} 4. b3 {[%emt 0:00:37]} cxd4 {[%emt 0:00:19]} 5. exd4 {[%emt 0:00:30]} Nc6 {[%emt 0:00:40]} 6. Bb2 {[%emt 0:04:35] D04: Colle System.} Bf5 {[%emt 0:00:44]} 7. a3 {[%emt 0:07:38]} e6 {[%emt 0:00:54]} 8. Be2 {[%emt 0:01:34] [#]} Nd7 $146 {[%emt 0:02:58]} ({Predecessor:} 8... Bd6 9. O-O h6 10. Nbd2 O-O 11. Re1 Rc8 12. Nf1 Bh7 13. Bd3 Ne4 14. c4 Kh8 {0-1 (37) Hajdarevic,S (2102)-Mesic,I (2280) Bihac 2022}) 9. Nbd2 {[%emt 0:03:28]} Qc7 {[%emt 0:02:39]} (9... g5 $142) 10. Rc1 {[%emt 0:04:47]} Be7 {[%emt 0:00:47]} 11. c4 {[%emt 0:04:43]} Bf6 {[%emt 0:01:15]} 12. O-O {[%emt 0:05:46]} O-O {[%emt 0:01:38]} 13. Re1 {[%emt 0:06:06]} dxc4 {[%emt 0:08:16]} 14. Nxc4 {[%emt 0:08:51]} Rad8 {[%emt 0:05:04]} 15. b4 {[%emt 0:09:24]} Qb8 {[%emt 0:01:13]} 16. Qb3 {[%emt 0:02:13]} Nb6 {[%emt 0:06:48]} 17. Nxb6 {[%emt 0:03:39]} (17. Nce5 $14 {feels stronger.}) 17... axb6 $11 {[%emt 0:00:02]} 18. Red1 {[%emt 0:02:04]} Be4 {[%emt 0:01:53]} 19. Qe3 {[%emt 0:02:01]} Bd5 {[%emt 0:01:11]} 20. Ne5 {[%emt 0:02:06]} Qd6 {[%emt 0:08:02]} 21. Rd2 {[%emt 0:05:40]} Bxg2 {[%emt 0:16:07] Strongly threatening ...Bxe5.} 22. Ng4 {[%emt 0:09:24]} Be7 {[%emt 0:14:59]} 23. Kxg2 $18 {[%emt 0:01:58]} f5 {[%emt 0:00:21]} 24. Rcd1 {[%emt 0:04:07]} fxg4 {[%emt 0:04:32]} 25. d5 $1 {[%emt 0:01:59]} exd5 {[%emt 0:02:12]} 26. Rxd5 {[%emt 0:01:10] The board is on fire.} Qg6 {[%emt 0:02:04]} 27. Rxd8 {[%emt 0:02:26]} Bxd8 {[%emt 0:00:49]} 28. Rd7 {[%emt 0:01:11]} Bf6 {[%emt 0:00:32] [#]} 29. Bc4+ $1 {[%emt 0:00:48][%cal Be2c4,Bc4f7,Bf7d5][%mdl 32] This bishop pair is nice.} Kh8 {[%emt 0:00:15] [#]} 30. Rf7 {[%emt 0:01:45]} (30. Bd3 $1 $18 {[%cal Rd3g6] is the precise move to win.} Qh6 31. Qxh6 gxh6 32. Bxf6+ Rxf6 33. Rxh7+ Kg8 34. Rxb7) 30... Qxf7 {[%emt 0:04:32]} (30... Rd8 $16 31. Bxf6 gxf6) 31. Bxf7 {[%emt 0:00:11]} Bxb2 {[%emt 0:00:04]} 32. b5 {[%emt 0:02:01]} Ne5 {[%emt 0:04:08]} 33. Bd5 {[%emt 0:00:48]} Rd8 {[%emt 0:01:32]} 34. Bxb7 {[%emt 0:00:57]} Bd4 {[%emt 0:00:32]} 35. Qe2 {[%emt 0:01:26]} (35. Qe4 $18 {has better winning chances.}) 35... Rf8 $16 {[%emt 0:01:01]} 36. a4 {[%emt 0:00:55]} ({Only move:} 36. Qd1 $16 Bxf2 37. Be4) 36... Rxf2+ $15 {[%emt 0:02:31]} 37. Qxf2 {[%emt 0:00:08]} Bxf2 {[%emt 0:00:05]} 38. Kxf2 {[%emt 0:00:13][%mdl 4096] Endgame KB-KN} Nd3+ {[%emt 0:01:33]} ({Black should play} 38... Kg8 $17 39. Ke3 Kf7) 39. Kg3 {[%emt 0:01:36] The position is equal.} Nc5 {[%emt 0:00:08][%csl LRa4,LRb7]} 40. a5 {[%emt 0:00:50]} bxa5 {[%emt 0:00:23]} 41. Bd5 {[%emt 0:02:54]} g6 {[%emt 0:09:42] Threatens to win with ...h5.} 42. Kxg4 {[%emt 0:05:00]} Kg7 {[%emt 0:00:40] White should prevent ...a4.} 43. b6 {[%emt 0:00:48]} a4 {[%emt 0:03:52] next ...a3 is good for Black.} 44. b7 {[%emt 0:02:54] Black defended with fortune.  Weighted Error Value: White=0.25 (precise) /Black=0.24 (precise)} 1/2-1/2